[Event "Early-Titled-Tuesday-Blitz-February-20-2024"]
[Site "Chess.com"]
[Date "2024.02.20"]
[Round "1"]
[White "Fighterman91"]
[Black "Cheer_Down"]
[Result "1-0"]
[WhiteElo "2762"]
[BlackElo "2414"]
[TimeControl "180+1"]
[EndTime "8:07:44 PST"]
[Termination "Fighterman91 won by resignation"]

1. d4 {[%clk 0:03:00.9]} 1... Nf6 {[%clk 0:02:54.9]} 2. Bf4 {[%clk 0:03:01.4]}
2... d5 {[%clk 0:02:49.4]} 3. e3 {[%clk 0:03:01.8]} 3... e6 {[%clk 0:02:48.4]}
4. Nd2 {[%clk 0:03:02.3]} 4... c5 {[%clk 0:02:48.3]} 5. c3 {[%clk 0:03:02.3]}
5... Nc6 {[%clk 0:02:48.3]} 6. Ngf3 {[%clk 0:03:02.9]} 6... Bd6 {[%clk
0:02:48.2]} 7. Bg3 {[%clk 0:03:03.7]} 7... O-O {[%clk 0:02:47.4]} 8. Bb5 {[%clk
0:03:04.4]} 8... Be7 {[%clk 0:02:45.9]} 9. O-O {[%clk 0:03:03.5]} 9... a6 {[%clk
0:02:40.6]} 10. Bd3 {[%clk 0:03:02.8]} 10... Bd6 {[%clk 0:02:36.6]} 11. Ne5
{[%clk 0:03:02.6]} 11... Ne7 {[%clk 0:02:35.1]} 12. dxc5 {[%clk 0:02:50.8]}
12... Bxc5 {[%clk 0:02:33.9]} 13. Qe2 {[%clk 0:02:46.4]} 13... Ng6 {[%clk
0:02:27.7]} 14. Nxg6 {[%clk 0:02:45.7]} 14... hxg6 {[%clk 0:02:27.4]} 15. Rad1
{[%clk 0:02:40.8]} 15... Qe7 {[%clk 0:02:24.6]} 16. Bh4 {[%clk 0:02:37.4]} 16...
Bd7 {[%clk 0:02:17]} 17. e4 {[%clk 0:02:36.7]} 17... dxe4 {[%clk 0:02:16.1]} 18.
Nxe4 {[%clk 0:02:36.5]} 18... Bc6 {[%clk 0:02:14.4]} 19. Nxc5 {[%clk 0:02:30.7]}
19... Qxc5 {[%clk 0:02:13.7]} 20. Bg3 {[%clk 0:02:17.3]} 20... Rfd8 {[%clk
0:02:04.1]} 21. Rfe1 {[%clk 0:02:09.4]} 21... Bb5 {[%clk 0:01:58.7]} 22. c4
{[%clk 0:02:03.7]} 22... Bc6 {[%clk 0:01:53]} 23. Qe5 {[%clk 0:01:54.9]} 23...
Qxe5 {[%clk 0:01:36.9]} 24. Bxe5 {[%clk 0:01:52.7]} 24... Rd7 {[%clk 0:01:33.5]}
25. f3 {[%clk 0:01:43.9]} 25... Rad8 {[%clk 0:01:33.4]} 26. Be2 {[%clk 0:01:35]}
26... Rxd1 {[%clk 0:01:27.9]} 27. Rxd1 {[%clk 0:01:34.6]} 27... Rxd1+ {[%clk
0:01:27.8]} 28. Bxd1 {[%clk 0:01:35.3]} 28... Nd7 {[%clk 0:01:26.6]} 29. Bd6
{[%clk 0:01:35.2]} 29... f6 {[%clk 0:01:24.2]} 30. b4 {[%clk 0:01:23.3]} 30...
b5 {[%clk 0:01:23.6]} 31. Bb3 {[%clk 0:01:16.9]} 31... Kf7 {[%clk 0:01:19.5]}
32. c5 {[%clk 0:01:13.3]} 32... Bd5 {[%clk 0:01:04.9]} 33. Bxd5 {[%clk
0:01:12.7]} 33... exd5 {[%clk 0:01:05.1]} 34. c6 {[%clk 0:00:28.1]} 34... Nb6
{[%clk 0:01:04.6]} 35. Bc5 {[%clk 0:00:28.9]} 35... Nc8 {[%clk 0:00:57.8]} 36.
Kf2 {[%clk 0:00:29.2]} 36... Ke6 {[%clk 0:00:58.1]} 37. Ke3 {[%clk 0:00:17]}
37... Ne7 {[%clk 0:00:56.1]} 38. c7 {[%clk 0:00:08.1]} 38... Nc8 {[%clk
0:00:52.6]} 39. Kd4 {[%clk 0:00:08.6]} 39... g5 {[%clk 0:00:44.8]} 40. g3 {[%clk
0:00:08.9]} 40... g6 {[%clk 0:00:44.4]} 41. h4 {[%clk 0:00:08.5]} 41... gxh4
{[%clk 0:00:44]} 42. gxh4 {[%clk 0:00:09.4]} 42... f5 {[%clk 0:00:41]} 43. f4
{[%clk 0:00:09.7]} 43... Kd7 {[%clk 0:00:36.3]} 44. Kxd5 {[%clk 0:00:10.2]}
44... Kxc7 {[%clk 0:00:37]} 45. Ke6 {[%clk 0:00:10.8]} 45... Kc6 {[%clk
0:00:37.9]} 46. Kf6 {[%clk 0:00:11.2]} 46... a5 {[%clk 0:00:38.6]} 47. a3 {[%clk
0:00:11.1]} 47... axb4 {[%clk 0:00:37.2]} 48. axb4 {[%clk 0:00:12]} 48... Nd6
{[%clk 0:00:34.7]} 49. Bxd6 {[%clk 0:00:12.2]} 49... Kxd6 {[%clk 0:00:35.4]} 50.
Kxg6 {[%clk 0:00:12.8]} 50... Kd5 {[%clk 0:00:36.2]} 51. h5 {[%clk 0:00:12.1]}
51... Kc4 {[%clk 0:00:37.1]} 52. h6 {[%clk 0:00:12.5]} 1-0

[Event "Early-Titled-Tuesday-Blitz-February-20-2024"]
[Site "Chess.com"]
[Date "2024.02.20"]
[Round "1"]
[White "JonaszBaum"]
[Black "CrazyMartian"]
[Result "1-0"]
[WhiteElo "2679"]
[BlackElo "2343"]
[TimeControl "180+1"]
[EndTime "8:07:44 PST"]
[Termination "JonaszBaum won by resignation"]

1. e4 {[%clk 0:03:00.9]} 1... c5 {[%clk 0:02:59.5]} 2. Nf3 {[%clk 0:02:59.5]}
2... d5 {[%clk 0:02:59.8]} 3. exd5 {[%clk 0:02:58.2]} 3... Nf6 {[%clk
0:03:00.4]} 4. Nc3 {[%clk 0:02:57.1]} 4... Nxd5 {[%clk 0:03:00.2]} 5. Bb5+
{[%clk 0:02:56.9]} 5... Bd7 {[%clk 0:03:00.7]} 6. Ne5 {[%clk 0:02:54.2]} 6...
Bxb5 {[%clk 0:02:58.6]} 7. Nxb5 {[%clk 0:02:29.6]} 7... Nc6 {[%clk 0:02:14.6]}
8. Nxc6 {[%clk 0:02:25]} 8... bxc6 {[%clk 0:02:15.5]} 9. Na3 {[%clk 0:02:24.9]}
9... e6 {[%clk 0:02:13.9]} 10. O-O {[%clk 0:02:22.6]} 10... Be7 {[%clk
0:02:13.3]} 11. d3 {[%clk 0:02:23]} 11... O-O {[%clk 0:02:10.5]} 12. Nc4 {[%clk
0:02:22.5]} 12... Rb8 {[%clk 0:02:09.2]} 13. Re1 {[%clk 0:02:14.5]} 13... Re8
{[%clk 0:02:02.4]} 14. a3 {[%clk 0:02:14.5]} 14... Nb6 {[%clk 0:02:01.4]} 15.
Ne5 {[%clk 0:02:13.2]} 15... Qc8 {[%clk 0:01:57.1]} 16. Qf3 {[%clk 0:02:12.5]}
16... Bf6 {[%clk 0:01:48.4]} 17. Nxc6 {[%clk 0:02:10.6]} 17... Rb7 {[%clk
0:01:46.1]} 18. Na5 {[%clk 0:02:01]} 18... Rd7 {[%clk 0:01:45.4]} 19. c3 {[%clk
0:01:34.9]} 19... Nd5 {[%clk 0:01:45.1]} 20. Nc4 {[%clk 0:01:33.1]} 20... Qb7
{[%clk 0:01:41.1]} 21. Bd2 {[%clk 0:01:31.4]} 21... Rb8 {[%clk 0:01:25]} 22.
Rad1 {[%clk 0:01:30.7]} 22... Nb6 {[%clk 0:01:25]} 23. Qxb7 {[%clk 0:01:30.3]}
23... Rdxb7 {[%clk 0:01:21.6]} 24. Nxb6 {[%clk 0:01:23]} 24... axb6 {[%clk
0:01:18]} 25. Kf1 {[%clk 0:01:20.6]} 25... Rd7 {[%clk 0:01:16.6]} 26. Ke2 {[%clk
0:01:20.7]} 26... Rbd8 {[%clk 0:01:17.1]} 27. Be3 {[%clk 0:01:20.2]} 27... h5
{[%clk 0:01:16.9]} 28. h3 {[%clk 0:01:19.6]} 28... Rd5 {[%clk 0:01:17]} 29. Rd2
{[%clk 0:01:19.7]} 29... g5 {[%clk 0:01:16.4]} 30. Rb1 {[%clk 0:01:14.6]} 30...
Kg7 {[%clk 0:01:16.3]} 31. c4 {[%clk 0:01:13.9]} 31... R5d7 {[%clk 0:01:15.8]}
32. b4 {[%clk 0:01:14.5]} 32... Bd4 {[%clk 0:01:06.7]} 33. bxc5 {[%clk
0:01:11.8]} 33... Bxe3 {[%clk 0:01:03.2]} 34. fxe3 {[%clk 0:01:09.6]} 34... bxc5
{[%clk 0:01:03.4]} 35. Rb5 {[%clk 0:01:09.8]} 35... Rc7 {[%clk 0:01:00.4]} 36.
a4 {[%clk 0:01:09.8]} 36... Ra8 {[%clk 0:01:00.3]} 37. a5 {[%clk 0:01:10.3]}
37... f5 {[%clk 0:00:57.7]} 38. Ra2 {[%clk 0:01:10]} 38... Kf6 {[%clk
0:00:55.5]} 39. a6 {[%clk 0:01:10.2]} 39... Ke7 {[%clk 0:00:47.7]} 40. Rb6
{[%clk 0:01:08.9]} 40... Rca7 {[%clk 0:00:44.8]} 41. d4 {[%clk 0:01:07.2]} 41...
cxd4 {[%clk 0:00:43.1]} 42. exd4 {[%clk 0:01:08.1]} 42... Kd7 {[%clk 0:00:41.5]}
43. Kd3 {[%clk 0:01:06.1]} 43... g4 {[%clk 0:00:40.1]} 44. d5 {[%clk 0:01:00.1]}
44... exd5 {[%clk 0:00:37.8]} 45. cxd5 {[%clk 0:01:01]} 45... f4 {[%clk
0:00:29.3]} 46. Kd4 {[%clk 0:00:57.4]} 46... f3 {[%clk 0:00:25.3]} 47. gxf3
{[%clk 0:00:55.7]} 47... gxf3 {[%clk 0:00:25.3]} 48. Rf6 {[%clk 0:00:54.5]}
48... f2 {[%clk 0:00:22.4]} 49. Rf7+ {[%clk 0:00:52.2]} 49... Kd6 {[%clk
0:00:22]} 50. Rfxf2 {[%clk 0:00:50.4]} 50... Re7 {[%clk 0:00:05.8]} 51. Rf6+
{[%clk 0:00:46.9]} 51... Kd7 {[%clk 0:00:06.3]} 52. a7 {[%clk 0:00:45]} 52...
Ke8 {[%clk 0:00:05.7]} 53. Rh6 {[%clk 0:00:44.9]} 53... Rexa7 {[%clk 0:00:04.8]}
54. Rxa7 {[%clk 0:00:44.3]} 54... Rxa7 {[%clk 0:00:05.7]} 55. Rh8+ {[%clk
0:00:44.9]} 1-0

[Event "Early-Titled-Tuesday-Blitz-February-20-2024"]
[Site "Chess.com"]
[Date "2024.02.20"]
[Round "1"]
[White "jup1978"]
[Black "alexrustemov"]
[Result "0-1"]
[WhiteElo "2505"]
[BlackElo "2906"]
[TimeControl "180+1"]
[EndTime "8:07:45 PST"]
[Termination "alexrustemov won by resignation"]

1. e4 {[%clk 0:03:00.9]} 1... e6 {[%clk 0:02:59.9]} 2. d4 {[%clk 0:02:59]} 2...
d5 {[%clk 0:03:00.8]} 3. Nc3 {[%clk 0:02:58.4]} 3... dxe4 {[%clk 0:03:01]} 4.
Nxe4 {[%clk 0:02:59.3]} 4... Bd7 {[%clk 0:03:01.4]} 5. Nf3 {[%clk 0:02:58]} 5...
Bc6 {[%clk 0:03:01.9]} 6. Bd3 {[%clk 0:02:56.9]} 6... Nd7 {[%clk 0:03:02.4]} 7.
O-O {[%clk 0:02:54.9]} 7... Ngf6 {[%clk 0:03:02.9]} 8. Ng3 {[%clk 0:02:54.9]}
8... Be7 {[%clk 0:03:02.7]} 9. b3 {[%clk 0:02:54.2]} 9... b5 {[%clk 0:03:01.9]}
10. Bb2 {[%clk 0:02:51.5]} 10... b4 {[%clk 0:03:01.7]} 11. a3 {[%clk 0:02:48.3]}
11... a5 {[%clk 0:03:01.1]} 12. Qe2 {[%clk 0:02:37.1]} 12... O-O {[%clk
0:02:44.8]} 13. Ne5 {[%clk 0:02:23.5]} 13... Nxe5 {[%clk 0:02:34.3]} 14. dxe5
{[%clk 0:02:24.4]} 14... Qd5 {[%clk 0:02:34.2]} 15. f3 {[%clk 0:02:11.7]} 15...
bxa3 {[%clk 0:02:33.1]} 16. Bc1 {[%clk 0:02:01.8]} 16... Qd4+ {[%clk 0:02:29.8]}
17. Be3 {[%clk 0:01:56.2]} 17... Qxe5 {[%clk 0:02:29.7]} 18. Qd2 {[%clk
0:01:50.2]} 18... Bc5 {[%clk 0:02:25.9]} 19. Bxc5 {[%clk 0:01:49.1]} 19... Qxc5+
{[%clk 0:02:25.7]} 20. Kh1 {[%clk 0:01:50]} 20... Rfd8 {[%clk 0:02:24.4]} 21.
Qc1 {[%clk 0:01:49.8]} 21... a4 {[%clk 0:02:15.8]} 22. Qxa3 {[%clk 0:01:46.7]}
22... Qxa3 {[%clk 0:02:13.9]} 23. Rxa3 {[%clk 0:01:47.6]} 23... axb3 {[%clk
0:02:14.2]} 24. Rxa8 {[%clk 0:01:45.8]} 24... Rxa8 {[%clk 0:02:13.8]} 25. cxb3
{[%clk 0:01:46.7]} 25... Bd5 {[%clk 0:02:11.1]} 26. b4 {[%clk 0:01:42]} 26...
Ra3 {[%clk 0:02:01.8]} 27. Bc2 {[%clk 0:01:35.6]} 27... Rc3 {[%clk 0:01:59.9]}
28. Be4 {[%clk 0:01:28.2]} 28... Bxe4 {[%clk 0:01:49.1]} 29. fxe4 {[%clk
0:01:29.1]} 29... Ng4 {[%clk 0:01:41]} 30. Kg1 {[%clk 0:01:23.3]} 30... g6
{[%clk 0:01:37.5]} 31. Rd1 {[%clk 0:01:18.3]} 31... Rc2 {[%clk 0:01:32.8]} 32.
Nf1 {[%clk 0:01:13.1]} 32... Rc4 {[%clk 0:01:28.3]} 33. Rd7 {[%clk 0:01:10.5]}
33... Rxb4 {[%clk 0:01:24.6]} 34. Rxc7 {[%clk 0:01:06.9]} 34... Rxe4 {[%clk
0:01:21.3]} 35. h3 {[%clk 0:01:07]} 35... Nf6 {[%clk 0:01:17.1]} 36. Ng3 {[%clk
0:01:07.1]} 36... Re5 {[%clk 0:01:16]} 37. Rb7 {[%clk 0:01:05]} 37... h5 {[%clk
0:01:15.5]} 38. Rb4 {[%clk 0:01:03.1]} 38... Kg7 {[%clk 0:01:14.8]} 39. Ra4
{[%clk 0:01:03.2]} 39... Rd5 {[%clk 0:01:10.8]} 40. Rb4 {[%clk 0:01:03.1]} 40...
g5 {[%clk 0:01:10.5]} 41. Ra4 {[%clk 0:01:00.5]} 41... h4 {[%clk 0:01:10.1]} 42.
Ne2 {[%clk 0:00:57.2]} 42... Kg6 {[%clk 0:01:09]} 43. Nc3 {[%clk 0:00:56.8]}
43... Rc5 {[%clk 0:01:06.2]} 44. Ne2 {[%clk 0:00:56]} 44... Re5 {[%clk
0:01:01.8]} 45. Kf2 {[%clk 0:00:55.3]} 45... Re4 {[%clk 0:01:01.5]} 46. Ra7
{[%clk 0:00:53.3]} 46... Rb4 {[%clk 0:01:00.9]} 47. Nc3 {[%clk 0:00:53.1]} 47...
Ne4+ {[%clk 0:01:00.3]} 48. Nxe4 {[%clk 0:00:53.7]} 48... Rxe4 {[%clk
0:01:00.8]} 49. Kf3 {[%clk 0:00:54.6]} 49... Rb4 {[%clk 0:01:00.4]} 50. Kf2
{[%clk 0:00:54.8]} 50... f6 {[%clk 0:00:59]} 51. Ra6 {[%clk 0:00:53.6]} 51...
Kf5 {[%clk 0:00:56.6]} 52. Ra5+ {[%clk 0:00:53.4]} 52... e5 {[%clk 0:00:56.6]}
53. Ra2 {[%clk 0:00:54.3]} 53... Kf4 {[%clk 0:00:54.5]} 54. Rc2 {[%clk
0:00:54.6]} 54... f5 {[%clk 0:00:53.6]} 55. Rd2 {[%clk 0:00:54.3]} 55... e4
{[%clk 0:00:53.2]} 56. Rc2 {[%clk 0:00:53.4]} 56... Rd4 {[%clk 0:00:52.7]} 57.
Kg1 {[%clk 0:00:53.3]} 57... Kg3 {[%clk 0:00:48.4]} 58. Rc1 {[%clk 0:00:51.4]}
58... Rd2 {[%clk 0:00:45.6]} 59. Re1 {[%clk 0:00:48.6]} 59... Rxg2+ {[%clk
0:00:44.9]} 60. Kh1 {[%clk 0:00:48.8]} 60... Rh2+ {[%clk 0:00:45.1]} 61. Kg1
{[%clk 0:00:49.4]} 61... Rxh3 {[%clk 0:00:43.3]} 62. Re2 {[%clk 0:00:49.3]}
62... Kg4 {[%clk 0:00:42.1]} 63. Kg2 {[%clk 0:00:47]} 63... Rg3+ {[%clk
0:00:41.9]} 64. Kh2 {[%clk 0:00:47.5]} 64... e3 {[%clk 0:00:38.7]} 65. Re1
{[%clk 0:00:47.5]} 65... f4 {[%clk 0:00:38.6]} 66. Rf1 {[%clk 0:00:47.8]} 66...
Rf3 {[%clk 0:00:38.7]} 67. Rg1+ {[%clk 0:00:47.3]} 67... Kf5 {[%clk 0:00:38.9]}
68. Re1 {[%clk 0:00:47.7]} 68... g4 {[%clk 0:00:38.6]} 69. Kh1 {[%clk
0:00:48.6]} 69... Rf2 {[%clk 0:00:37.5]} 70. Rg1 {[%clk 0:00:48]} 70... e2
{[%clk 0:00:33.6]} 0-1

[Event "Early-Titled-Tuesday-Blitz-February-20-2024"]
[Site "Chess.com"]
[Date "2024.02.20"]
[Round "1"]
[White "Sam_ChessMood"]
[Black "kecalk"]
[Result "1-0"]
[WhiteElo "2933"]
[BlackElo "2510"]
[TimeControl "180+1"]
[EndTime "8:07:47 PST"]
[Termination "Sam_ChessMood won on time"]

1. d4 {[%clk 0:03:00.2]} 1... Nf6 {[%clk 0:02:58.8]} 2. c4 {[%clk 0:03:00.5]}
2... e6 {[%clk 0:02:58.4]} 3. Nf3 {[%clk 0:03:00.8]} 3... d5 {[%clk 0:02:57.8]}
4. Nc3 {[%clk 0:03:01.2]} 4... Bb4 {[%clk 0:02:57.3]} 5. cxd5 {[%clk 0:03:00.2]}
5... exd5 {[%clk 0:02:57.2]} 6. Bg5 {[%clk 0:03:00.5]} 6... h6 {[%clk
0:02:57.3]} 7. Bh4 {[%clk 0:03:00.8]} 7... O-O {[%clk 0:02:57.4]} 8. e3 {[%clk
0:03:01.1]} 8... Bf5 {[%clk 0:02:57.4]} 9. Qb3 {[%clk 0:02:59.1]} 9... Bxc3+
{[%clk 0:02:57.4]} 10. bxc3 {[%clk 0:02:59.4]} 10... Nbd7 {[%clk 0:02:54.6]} 11.
Be2 {[%clk 0:02:59.7]} 11... c5 {[%clk 0:02:53.5]} 12. dxc5 {[%clk 0:03:00.6]}
12... Nxc5 {[%clk 0:02:53.7]} 13. Qb4 {[%clk 0:03:01.1]} 13... Rc8 {[%clk
0:02:53.8]} 14. O-O {[%clk 0:03:00.4]} 14... Re8 {[%clk 0:02:50]} 15. Rfd1
{[%clk 0:02:53.9]} 15... g5 {[%clk 0:02:33.7]} 16. Bg3 {[%clk 0:02:53.5]} 16...
Qe7 {[%clk 0:02:28.5]} 17. Nd4 {[%clk 0:02:33.1]} 17... Bd7 {[%clk 0:02:22.1]}
18. c4 {[%clk 0:02:07.6]} 18... dxc4 {[%clk 0:02:22.2]} 19. Bxc4 {[%clk
0:01:53.1]} 19... Nfe4 {[%clk 0:02:22]} 20. Rac1 {[%clk 0:01:47.7]} 20... h5
{[%clk 0:02:11.4]} 21. Nb5 {[%clk 0:01:38.2]} 21... Bxb5 {[%clk 0:01:36.5]} 22.
Bxb5 {[%clk 0:01:37.6]} 22... Red8 {[%clk 0:01:36.7]} 23. Qb2 {[%clk 0:01:09.7]}
23... f6 {[%clk 0:01:06.8]} 24. Bc4+ {[%clk 0:00:34.9]} 24... Kg7 {[%clk
0:01:01.4]} 25. Qe2 {[%clk 0:00:26.8]} 25... h4 {[%clk 0:00:55.3]} 26. Bxh4
{[%clk 0:00:23.8]} 26... gxh4 {[%clk 0:00:43]} 27. Qg4+ {[%clk 0:00:23.9]} 27...
Kh8 {[%clk 0:00:38.1]} 28. Qxh4+ {[%clk 0:00:22.1]} 28... Qh7 {[%clk 0:00:35]}
29. Qf4 {[%clk 0:00:22.3]} 29... Qg7 {[%clk 0:00:17.1]} 30. Rd5 {[%clk
0:00:14.4]} 30... Rxd5 {[%clk 0:00:14.6]} 31. Bxd5 {[%clk 0:00:15.3]} 31... Ng5
{[%clk 0:00:13.2]} 32. Kh1 {[%clk 0:00:09.8]} 32... b6 {[%clk 0:00:11.3]} 33. e4
{[%clk 0:00:07.7]} 33... Rd8 {[%clk 0:00:10.4]} 34. Rc3 {[%clk 0:00:05.9]} 34...
Nce6 {[%clk 0:00:07]} 35. Qe3 {[%clk 0:00:05.3]} 35... Rg8 {[%clk 0:00:03.7]}
36. Qg3 {[%clk 0:00:04.1]} 36... Qg6 {[%clk 0:00:02.3]} 37. Qh4+ {[%clk
0:00:04.2]} 37... Qh7 {[%clk 0:00:02]} 38. Qg3 {[%clk 0:00:03.6]} 38... Nf7
{[%clk 0:00:01.9]} 39. Qe3 {[%clk 0:00:03.2]} 39... Neg5 {[%clk 0:00:01.3]} 40.
g3 {[%clk 0:00:03.3]} 1-0

[Event "Early-Titled-Tuesday-Blitz-February-20-2024"]
[Site "Chess.com"]
[Date "2024.02.20"]
[Round "1"]
[White "Chessdude1987"]
[Black "IMRosen"]
[Result "0-1"]
[WhiteElo "2318"]
[BlackElo "2652"]
[TimeControl "180+1"]
[EndTime "8:07:49 PST"]
[Termination "IMRosen won on time"]

1. e4 {[%clk 0:03:00.9]} 1... c5 {[%clk 0:02:59.3]} 2. Nf3 {[%clk 0:03:00.6]}
2... Nc6 {[%clk 0:02:59.9]} 3. Bb5 {[%clk 0:03:00]} 3... e6 {[%clk 0:03:00]} 4.
Bxc6 {[%clk 0:02:52.5]} 4... bxc6 {[%clk 0:03:00.9]} 5. d3 {[%clk 0:02:51.9]}
5... Ne7 {[%clk 0:02:59.4]} 6. Qe2 {[%clk 0:02:51.6]} 6... Ng6 {[%clk
0:02:57.1]} 7. h4 {[%clk 0:02:41.7]} 7... f6 {[%clk 0:02:56.1]} 8. e5 {[%clk
0:02:32]} 8... Nxe5 {[%clk 0:02:49.8]} 9. Nxe5 {[%clk 0:02:31.9]} 9... fxe5
{[%clk 0:02:50.4]} 10. Qxe5 {[%clk 0:02:31.6]} 10... d6 {[%clk 0:02:48.8]} 11.
Qe2 {[%clk 0:02:29.1]} 11... Be7 {[%clk 0:02:45.5]} 12. Qh5+ {[%clk 0:02:18.3]}
12... g6 {[%clk 0:02:45.2]} 13. Qe2 {[%clk 0:02:17.6]} 13... Bxh4 {[%clk
0:02:30.5]} 14. Nc3 {[%clk 0:02:12.5]} 14... Bf6 {[%clk 0:02:27.7]} 15. Ne4
{[%clk 0:02:09.7]} 15... Bg7 {[%clk 0:02:28]} 16. Bg5 {[%clk 0:02:07.3]} 16...
Qc7 {[%clk 0:02:20.1]} 17. Nf6+ {[%clk 0:02:03.8]} 17... Bxf6 {[%clk 0:02:11.1]}
18. Bxf6 {[%clk 0:02:03.7]} 18... O-O {[%clk 0:02:11.7]} 19. Bc3 {[%clk
0:01:53.6]} 19... e5 {[%clk 0:02:08.7]} 20. O-O-O {[%clk 0:01:52.7]} 20... Qf7
{[%clk 0:02:03.3]} 21. f3 {[%clk 0:01:48]} 21... Qxa2 {[%clk 0:01:26.1]} 22. Rh2
{[%clk 0:01:44.7]} 22... Qf7 {[%clk 0:00:57.4]} 23. Rdh1 {[%clk 0:01:44.2]}
23... h5 {[%clk 0:00:44]} 24. Rh4 {[%clk 0:01:43.9]} 24... a5 {[%clk 0:00:39.1]}
25. Qe3 {[%clk 0:01:37.4]} 25... a4 {[%clk 0:00:36]} 26. f4 {[%clk 0:01:02.3]}
26... exf4 {[%clk 0:00:30.7]} 27. Qf3 {[%clk 0:00:37.7]} 27... a3 {[%clk
0:00:27.1]} 28. Rxh5 {[%clk 0:00:35.9]} 28... gxh5 {[%clk 0:00:22.5]} 29. Rxh5
{[%clk 0:00:35.5]} 29... Qg6 {[%clk 0:00:14.9]} 30. Rh8+ {[%clk 0:00:28.9]}
30... Kf7 {[%clk 0:00:15.2]} 31. Qxf4+ {[%clk 0:00:27.8]} 31... Bf5 {[%clk
0:00:15.4]} 32. Rh6 {[%clk 0:00:23]} 32... a2 {[%clk 0:00:06.3]} 33. Rxg6 {[%clk
0:00:17.2]} 33... a1=Q+ {[%clk 0:00:07.2]} 34. Kd2 {[%clk 0:00:16.4]} 34... Kxg6
{[%clk 0:00:08.1]} 35. Qxd6+ {[%clk 0:00:13.3]} 35... Kg5 {[%clk 0:00:04.1]} 36.
Qg3+ {[%clk 0:00:12.8]} 36... Bg4 {[%clk 0:00:03.6]} 37. Qe5+ {[%clk 0:00:12.2]}
37... Rf5 {[%clk 0:00:02.8]} 38. Qg7+ {[%clk 0:00:12]} 38... Kf4 {[%clk
0:00:03.3]} 39. Qh6+ {[%clk 0:00:10.8]} 39... Kg3 {[%clk 0:00:03.8]} 40. Qd6+
{[%clk 0:00:08.6]} 40... Kxg2 {[%clk 0:00:03.7]} 41. Qxc6+ {[%clk 0:00:07.5]}
41... Rf3 {[%clk 0:00:03.3]} 42. Qg6 {[%clk 0:00:05.3]} 42... Qf1 {[%clk
0:00:03.6]} 43. Qxg4+ {[%clk 0:00:04.9]} 43... Rg3 {[%clk 0:00:04.3]} 44. Qe4+
{[%clk 0:00:04.7]} 44... Qf3 {[%clk 0:00:05]} 45. Qe2+ {[%clk 0:00:02.3]} 45...
Qxe2+ {[%clk 0:00:05.2]} 46. Kxe2 {[%clk 0:00:03]} 46... Re8+ {[%clk 0:00:05.8]}
47. Kd2 {[%clk 0:00:03.2]} 47... Rf3 {[%clk 0:00:06.4]} 0-1

[Event "Early-Titled-Tuesday-Blitz-February-20-2024"]
[Site "Chess.com"]
[Date "2024.02.20"]
[Round "1"]
[White "VladimirBugayev"]
[Black "Juwen"]
[Result "0-1"]
[WhiteElo "2267"]
[BlackElo "2618"]
[TimeControl "180+1"]
[EndTime "8:07:49 PST"]
[Termination "Juwen won on time"]

1. e4 {[%clk 0:03:00.9]} 1... e5 {[%clk 0:02:42.5]} 2. Nf3 {[%clk 0:03:00]} 2...
Nc6 {[%clk 0:02:41.7]} 3. d4 {[%clk 0:03:00.5]} 3... exd4 {[%clk 0:02:41.3]} 4.
Nxd4 {[%clk 0:03:01.2]} 4... Nf6 {[%clk 0:02:39.9]} 5. Nxc6 {[%clk 0:03:01.2]}
5... bxc6 {[%clk 0:02:40.8]} 6. e5 {[%clk 0:03:00.9]} 6... Qe7 {[%clk
0:02:39.8]} 7. Qe2 {[%clk 0:03:00.1]} 7... Nd5 {[%clk 0:02:39.9]} 8. h4 {[%clk
0:03:00.7]} 8... a5 {[%clk 0:02:37.6]} 9. c4 {[%clk 0:02:59]} 9... Ba6 {[%clk
0:02:35.2]} 10. b3 {[%clk 0:02:41.2]} 10... a4 {[%clk 0:02:21.9]} 11. Bd2 {[%clk
0:02:10.9]} 11... Nb4 {[%clk 0:02:07.5]} 12. Bc3 {[%clk 0:02:04.5]} 12... c5
{[%clk 0:01:59.4]} 13. Qd2 {[%clk 0:01:34]} 13... g6 {[%clk 0:01:15.3]} 14. h5
{[%clk 0:01:25]} 14... Bg7 {[%clk 0:01:13.8]} 15. f4 {[%clk 0:01:22.3]} 15...
O-O {[%clk 0:01:06.4]} 16. Na3 {[%clk 0:01:05.1]} 16... d6 {[%clk 0:00:57.6]}
17. O-O-O {[%clk 0:00:59.2]} 17... dxe5 {[%clk 0:00:55]} 18. f5 {[%clk
0:00:59.5]} 18... gxf5 {[%clk 0:00:52.4]} 19. h6 {[%clk 0:00:47.9]} 19... Rfd8
{[%clk 0:00:51.4]} 20. Qf2 {[%clk 0:00:44.4]} 20... Rxd1+ {[%clk 0:00:30.3]} 21.
Kxd1 {[%clk 0:00:45.3]} 21... Rd8+ {[%clk 0:00:28.4]} 22. Kc1 {[%clk 0:00:45.4]}
22... Qg5+ {[%clk 0:00:27]} 23. Kb2 {[%clk 0:00:42]} 23... Bxh6 {[%clk
0:00:23.7]} 24. Rxh6 {[%clk 0:00:26.9]} 24... Qxh6 {[%clk 0:00:24.6]} 25. Qxf5
{[%clk 0:00:26.8]} 25... Bc8 {[%clk 0:00:17.7]} 26. Qxe5 {[%clk 0:00:25.1]}
26... f6 {[%clk 0:00:16.9]} 27. Qxc5 {[%clk 0:00:20.7]} 27... Na6 {[%clk
0:00:16.1]} 28. Qf2 {[%clk 0:00:15.9]} 28... Kg7 {[%clk 0:00:14.9]} 29. Nb5
{[%clk 0:00:14.3]} 29... Qg6 {[%clk 0:00:14]} 30. Nd4 {[%clk 0:00:13.6]} 30...
Nc5 {[%clk 0:00:14]} 31. Be2 {[%clk 0:00:12.4]} 31... Ne4 {[%clk 0:00:14.1]} 32.
Qe3 {[%clk 0:00:09.1]} 32... Nxc3 {[%clk 0:00:14]} 33. Qxc3 {[%clk 0:00:10]}
33... Qxg2 {[%clk 0:00:13.9]} 34. Ka3 {[%clk 0:00:08.1]} 34... Rxd4 {[%clk
0:00:13.2]} 35. Qxd4 {[%clk 0:00:08.2]} 35... Qxe2 {[%clk 0:00:13.7]} 36. Qd8
{[%clk 0:00:07.9]} 36... Bf5 {[%clk 0:00:12.4]} 37. Qxc7+ {[%clk 0:00:08]} 37...
Kg6 {[%clk 0:00:13.2]} 38. Qg3+ {[%clk 0:00:07.9]} 38... Qg4 {[%clk 0:00:12.2]}
39. Qe3 {[%clk 0:00:06.9]} 39... axb3 {[%clk 0:00:12.4]} 40. axb3 {[%clk
0:00:06.6]} 40... h5 {[%clk 0:00:13.1]} 41. Qe8+ {[%clk 0:00:06.3]} 41... Kg5
{[%clk 0:00:13.7]} 42. Qe3+ {[%clk 0:00:06.3]} 42... Qf4 {[%clk 0:00:13.1]} 43.
Qg1+ {[%clk 0:00:07]} 43... Bg4 {[%clk 0:00:11.5]} 44. Qc5+ {[%clk 0:00:06.5]}
44... Qe5 {[%clk 0:00:10.4]} 45. Qf8 {[%clk 0:00:06.4]} 45... h4 {[%clk
0:00:10.3]} 46. Qg8+ {[%clk 0:00:06.6]} 46... Kf4 {[%clk 0:00:10.5]} 0-1